Workbook

Sheet source (hidden)
A1: ESV | B1: Semaine | C1: Date | D1: Tournée | E1: Sillon | F1: H. Départ | G1: H. Arrivée | H1: UIC | I1: Parcours / Acheminement | J1: R | K1: Régions | L1: N° Ligne | M1: Voie | N1: Départ | O1: Arrivée | P1: Distance
A2: 701 | B2: 52 | C2: 2022-01-01 | I2: FERIE
A3: 701 | B3: 52 | C3: 2022-01-02 | I3: REPOS
A4: 701 | B4: 1 | C4: 2022-01-03 | I4: SEMAINE SECU
A5: 701 | B5: 1 | C5: 2022-01-04 | I5: SEMAINE SECU
A6: 701 | B6: 1 | C6: 2022-01-05 | I6: SEMAINE SECU
A7: 701 | B7: 1 | C7: 2022-01-06 | I7: SEMAINE SECU
A8: 701 | B8: 1 | C8: 2022-01-07 | I8: SEMAINE SECU
A9: 701 | B9: 1 | C9: 2022-01-08 | I9: REPOS
A10: 701 | B10: 1 | C10: 2022-01-09 | I10: REPOS
A11: 701 | B11: 2 | C11: 2022-01-10 | D11: SE07-SE08 | E11: 100001[1] | F11: 1037 | H11: ACH | I11: NEVERS - MACON | K11: AU RA | M11: ACH | N11: 0 | O11: 230 | P11: 238
A12: 701 | B12: 2 | C12: 2022-01-10 | D12: SE07-SE08 | H12: 2à6 | I12: MACON - LIMITE INFRAPOLE | K12: BF | L12: 883000 | M12: V1 | N12: 0.734 | O12: 2.6 | P12: =ABS(N12-O12) -> 1.866
A13: 701 | B13: 2 | C13: 2022-01-10 | D13: SE07-SE08 | H13: 2à6 | I13: LIMITE INFRAPOLE - BOURG EN BRESSE | K13: AL | L13: 883000 | M13: V1 | N13: 2.6 | O13: 36.448 | P13: 33.848
A14: 701 | B14: 2 | C14: 2022-01-10 | D14: SE07-SE08 | G14: 1452 | H14: 2à6 | I14: BOURG EN BRESSE - AMBERIEU | K14: AL | L14: 883000 | M14: V1 | N14: 36.448 | O14: 68.128 | P14: 31.68
A15: 701 | B15: 2 | C15: 2022-01-11 | D15: SE09 | E15: 100002/3[2] | F15: 1010 | H15: 2à6 | I15: AMBERIEU - LIMITE INFRAPOLE | K15: AL | L15: 890000 | M15: V2 | N15: 51.129 | O15: 42.744 | P15: 8.385
A16: 701 | B16: 2 | C16: 2022-01-11 | D16: SE09 | H16: 2à6 | I16: LIMITE INFRAPOLE - LYON ST CLAIR | K16: RA | L16: 890000 | M16: V2 | N16: 42.744 | O16: 8.128 | P16: 34.616
A17: 701 | B17: 2 | C17: 2022-01-11 | D17: SE09 | G17: 1048 | H17: ACH | I17: LYON ST CLAIR - LYON PART DIEU | J17: R | K17: RA | L17: 893000 | M17: V1B | N17: 504.407 | O17: 507.845 | P17: 3.438
A18: 701 | B18: 2 | C18: 2022-01-11 | D18: SE09 | E18: 100004/5[2] | F18: 1121 | H18: ACH | I18: LYON PART DIEU - LYON ST CLAIR | K18: RA | L18: 893000 | M18: V2B | N18: 506.889 | O18: 504.416 | P18: 2.473
A19: 701 | B19: 2 | C19: 2022-01-11 | D19: SE09 | H19: 2à6 | I19: LYON ST CLAIR - LIMITE INFRAPOLE | K19: RA | L19: 890000 | M19: V1 | N19: 8.12 | O19: 42.744 | P19: 34.624
A20: 701 | B20: 2 | C20: 2022-01-11 | D20: SE09 | H20: 2à6 | I20: LIMITE INFRAPOLE - AMBERIEU | K20: AL | L20: 890000 | M20: V1 | N20: 42.744 | O20: 51.133 | P20: 8.389
A21: 701 | B21: 2 | C21: 2022-01-11 | D21: SE09 | H21: 2à6 | I21: AMBERIEU - BOURG EN BRESSE | K21: AL | L21: 883000 | M21: V2 | N21: 68.635 | O21: 37.012 | P21: 31.623
A22: 701 | B22: 2 | C22: 2022-01-11 | D22: SE09 | H22: 2à6 | I22: BOURG EN BRESSE - LIMITE INFRAPOLE | K22: AL | L22: 883000 | M22: V2 | N22: 37.012 | O22: 2.6 | P22: 34.412
A23: 701 | B23: 2 | C23: 2022-01-11 | D23: SE09 | G23: 1316 | H23: 2à6 | I23: LIMITE INFRAPOLE - MACON | J23: R | K23: BF | L23: 883000 | M23: V2 | N23: 2.6 | O23: 0.59 | P23: 2.01
A24: 701 | B24: 2 | C24: 2022-01-11 | D24: SE09 | E24: 100006/7 | F24: 1410 | H24: ACH | I24: MACON - LIMITE INFRAPOLE | K24: BF | L24: 830000 | M24: V1 | N24: 440.186 | O24: 455 | P24: 14.814
A25: 701 | B25: 2 | C25: 2022-01-11 | D25: SE09 | H25: ACH | I25: LIMITE INFRAPOLE - VILLEFRANCHE SUR SOANE | K25: RA | L25: 830000 | M25: V1 | N25: 455 | O25: 477.844 | P25: 22.844
A26: 701 | B26: 2 | C26: 2022-01-11 | D26: SE09 | H26: ACH | I26: VILLEFRANCHE SUR SOANE - ST GERMAIN AU MONT D'OR | K26: RA | L26: 830000 | M26: V1 | N26: 477.844 | O26: 490.66 | P26: 12.816
A27: 701 | B27: 2 | C27: 2022-01-11 | D27: SE09 | H27: ACH | I27: ST GERMAIN AU MONT D'OR - LYON PERRACHE | K27: RA | L27: 830000 | M27: V1 | N27: 490.66 | O27: 510.646 | P27: 19.986
A28: 701 | B28: 2 | C28: 2022-01-11 | D28: SE09 | H28: 2à6 | I28: LYON PERRACHE - OULLINS | K28: RA | L28: 750000 | M28: V1 | N28: 558.9 | O28: 554.9 | P28: 4
A29: 701 | B29: 2 | C29: 2022-01-11 | D29: SE09 | H29: 2à6 | I29: OULLINS - GIVORS CANAL | K29: RA | L29: 750000 | M29: V1 | N29: 554.9 | O29: 539.021 | P29: 15.879
A30: 701 | B30: 2 | C30: 2022-01-11 | D30: SE09 | H30: 2à6 | I30: GIVORS CANAL - RIVE DE GIER | K30: RA | L30: 750000 | M30: V2 | N30: 539.021 | O30: 522.099 | P30: 16.922
A31: 701 | B31: 2 | C31: 2022-01-11 | D31: SE09 | G31: 1605 | H31: ACH | I31: RIVE DE GIER - ST ETIENNE | K31: RA | L31: 750000 | M31: V2 | N31: 522.099 | O31: 503.066 | P31: 19.033
A32: 701 | B32: 2 | C32: 2022-01-12 | D32: SE10 | E32: 100010/11[2] | F32: 1440 | H32: ACH | I32: ST ETIENNE - RIVE DE GIER | K32: RA | L32: 750000 | M32: V1 | N32: 503.012 | O32: 522.22 | P32: 19.208
A33: 701 | B33: 2 | C33: 2022-01-12 | D33: SE10 | H33: 2à6 | I33: RIVE DE GIER - GIVORS CANAL | K33: RA | L33: 750000 | M33: V1 | N33: 522.22 | O33: 539.021 | P33: 16.801
A34: 701 | B34: 2 | C34: 2022-01-12 | D34: SE10 | G34: 1515 | H34: ACH | I34: GIVORS CANAL - BADAN | J34: R | K34: RA | L34: 750000 | M34: V2 | N34: 539.021 | O34: 540.25 | P34: 1.229
A35: 701 | B35: 2 | C35: 2022-01-12 | D35: SE10 | E35: 100013 | F35: 1527 | H35: ACH | I35: BADAN - GIVORS CANAL | K35: RA | L35: 750000 | M35: V1 | N35: 540.25 | O35: 539.197 | P35: 1.053
A36: 701 | B36: 2 | C36: 2022-01-12 | D36: SE10 | H36: 2à6 | I36: GIVORS CANAL - PEYRAUD - LIMITE INFRAPOLE | K36: RA | L36: 800000 | M36: V1 | N36: 530.478 | O36: 698.9 | P36: 168.422
A37: 701 | B37: 2 | C37: 2022-01-12 | D37: SE10 | G37: 1908 | H37: 2à6 | I37: LIMITE INFRAPOLE - NIMES | K37: LR | L37: 800000 | M37: V1 | N37: 698.9 | O37: 784.936 | P37: 86.036
A38: 701 | B38: 2 | C38: 2022-01-13 | D38: SE11 | E38: 100016 | F38: 1551 | H38: 2à6 | I38: NIMES - LIMITE INFRAPOLE | K38: LR | L38: 800000 | M38: V2 | N38: 784.978 | O38: 698.9 | P38: 86.078
A39: 701 | B39: 2 | C39: 2022-01-13 | D39: SE11 | H39: 2à6 | I39: LIMITE INFRAPOLE - PEYRAUD - GIVORS CANAL | K39: RA | L39: 800000 | M39: V2 | N39: 698.9 | O39: 530.481 | P39: 168.419
A40: 701 | B40: 2 | C40: 2022-01-13 | D40: SE11 | H40: 2à6 | I40: GIVORS CANAL - OULLINS | K40: RA | L40: 750000 | M40: V2 | N40: 539.195 | O40: 554.9 | P40: 15.705
A41: 701 | B41: 2 | C41: 2022-01-13 | D41: SE11 | H41: 2à6 | I41: OULLINS - LYON PERRACHE | K41: RA | L41: 750000 | M41: V2 | N41: 554.9 | O41: 558.99 | P41: 4.09
A42: 701 | B42: 2 | C42: 2022-01-13 | D42: SE11 | G42: 1956 | H42: ACH | I42: LYON PERRACHE - LYON VAISE | J42: R | K42: RA | L42: 830000 | M42: V2 | N42: 510.556 | O42: 506.491 | P42: 4.065
A43: 701 | B43: 2 | C43: 2022-01-13 | D43: SE11 | E43: 100017 | F43: 2005 | H43: ACH | I43: LYON VAISE - VIENNE | K43: RA | L43: 830000 | M43: V1 | N43: 506.491 | O43: 542.722 | P43: 36.231
A44: 701 | B44: 2 | C44: 2022-01-13 | D44: SE11 | G44: 2153 | H44: 2à6 | I44: VIENNE - VALENCE | K44: RA | L44: 830000 | M44: V1 | N44: 542.722 | O44: 615.667 | P44: =ABS(N44-O44) -> 72.945
A45: 701 | B45: 2 | C45: 2022-01-14 | D45: SE12 | E45: 100018/19[1] | F45: 1246 | H45: 2à6 | I45: VALENCE - VALENCE | K45: RA | L45: 830000 | M45: V2 | N45: 617.586 | O45: 615.723 | P45: 1.863
A46: 701 | B46: 2 | C46: 2022-01-14 | D46: SE12 | H46: 2à6 | I46: VALENCE - ROMANS BOURG DE PEAGE | K46: RA | L46: 908000 | M46: V2 | N46: 1.215 | O46: 20.318 | P46: 19.103
A47: 701 | B47: 2 | C47: 2022-01-14 | D47: SE12 | H47: 2à6 | I47: ROMANS BOURG DE PEAGE - ST PAUL LES ROMANS | K47: RA | L47: 908000 | M47: UNIQUE | N47: 20.318 | O47: 26.225 | P47: 5.907
A48: 701 | B48: 2 | C48: 2022-01-14 | D48: SE12 | H48: 2à6 | I48: V1 DE ST PAUL LES ROMANS | K48: RA | L48: 908000 | M48: V1 | N48: 26.225 | O48: 27.12 | P48: 0.895
A49: 701 | B49: 2 | C49: 2022-01-14 | D49: SE12 | H49: 2à6 | I49: ST PAUL LES ROMANS - LIMITE INFRAPOLE | K49: RA | L49: 908000 | M49: UNIQUE | N49: 27.12 | O49: 28 | P49: 0.88
A50: 701 | B50: 2 | C50: 2022-01-14 | D50: SE12 | H50: 2à6 | I50: LIMITE INFRAPOLE - ST HILAIRE | K50: AL | L50: 908000 | M50: UNIQUE | N50: 28 | O50: 35.274 | P50: 7.274
A51: 701 | B51: 2 | C51: 2022-01-14 | D51: SE12 | H51: 2à6 | I51: ST HILAIRE - ST HILAIRE | K51: AL | L51: 908000 | M51: V1 | N51: 35.274 | O51: 43.183 | P51: 7.909
A52: 701 | B52: 2 | C52: 2022-01-14 | D52: SE12 | H52: 2à6 | I52: ST HILAIRE - ST MARCELLIN | K52: AL | L52: 908000 | M52: UNIQUE | N52: 43.183 | O52: 47.216 | P52: 4.033
A53: 701 | B53: 2 | C53: 2022-01-14 | D53: SE12 | H53: 2à6 | I53: ST MARCELLIN - MOIRANS | K53: AL | L53: 908000 | M53: V1 | N53: 47.216 | O53: 80.053 | P53: 32.837
A54: 701 | B54: 2 | C54: 2022-01-14 | D54: SE12 | G54: 1410 | H54: GEOV | I54: MOIRANS - GRENOBLE BV | J54: R | K54: AL | L54: 905000 | M54: V1 | N54: 112.514 | O54: 129.578 | P54: 17.064
A55: 701 | B55: 2 | C55: 2022-01-14 | D55: SE12 | E55: 100020/21[1] | F55: 1444 | H55: GEOV | I55: GRENOBLE BV - MOIRANS | K55: AL | L55: 905000 | M55: V2 | N55: 129.578 | O55: 112.514 | P55: 17.064
A56: 701 | B56: 2 | C56: 2022-01-14 | D56: SE12 | H56: 2à6 | I56: MOIRANS - ST MARCELLIN | K56: AL | L56: 908000 | M56: V2 | N56: 80.031 | O56: 47.216 | P56: 32.815
A57: 701 | B57: 2 | C57: 2022-01-14 | D57: SE12 | H57: ACH | I57: ST MARCELLIN - ST HILAIRE | K57: AL | L57: 908000 | M57: UNIQUE | N57: 47.216 | O57: 43.183 | P57: 4.033
A58: 701 | B58: 2 | C58: 2022-01-14 | D58: SE12 | H58: 2à6 | I58: ST HILAIRE - ST HILAIRE | K58: AL | L58: 908000 | M58: V2 | N58: 43.183 | O58: 35.274 | P58: 7.909
A59: 701 | B59: 2 | C59: 2022-01-14 | D59: SE12 | H59: ACH | I59: ST HILAIRE - LIMITE INFRAPOLE | K59: AL | L59: 908000 | M59: UNIQUE | N59: 35.274 | O59: 28 | P59: 7.274
A60: 701 | B60: 2 | C60: 2022-01-14 | D60: SE12 | H60: ACH | I60: LIMITE INFRAPOLE - ST PAUL LES ROMANS | K60: RA | L60: 908000 | M60: UNIQUE | N60: 28 | O60: 27.12 | P60: 0.88
A61: 701 | B61: 2 | C61: 2022-01-14 | D61: SE12 | H61: 2à6 | I61: V2 DE ST PAUL LES ROMANS | K61: RA | L61: 908000 | M61: V2 | N61: 27.12 | O61: 26.225 | P61: 0.895
A62: 701 | B62: 2 | C62: 2022-01-14 | D62: SE12 | H62: 2à6 | I62: ROMANS - VALENCE | K62: RA | L62: 908000 | M62: V1 | N62: 20.318 | O62: 1.179 | P62: 19.139
A63: 701 | B63: 2 | C63: 2022-01-14 | D63: SE12 | G63: 1615 | H63: 2à6 | I63: VALENCE - VALENCE (rebroussement derrière Cv13) | K63: RA | L63: 830000 | M63: V1 | N63: 615.759 | O63: 618.478 | P63: 2.719
A64: 701 | B64: 2 | C64: 2022-01-15 | D64: SE13 | E64: 100025 | F64: 917 | H64: 2à6 | I64: VALENCE - PORTES | K64: RA | L64: 830000 | M64: V1 | N64: 618.478 | O64: 625.8 | P64: 7.322
A65: 701 | B65: 2 | C65: 2022-01-15 | D65: SE13 | H65: 2à6 | I65: PORTES - LIVRON | K65: RA | L65: 830000 | M65: V1 | N65: 625.8 | O65: 634.015 | P65: 8.215
A66: 701 | B66: 2 | C66: 2022-01-15 | D66: SE13 | H66: 2à6 | I66: LIVRON - LIMITE INFRAPOLE | K66: RA | L66: 830000 | M66: V1 | N66: 634.015 | O66: 688.794 | P66: 54.779
A67: 701 | B67: 2 | C67: 2022-01-15 | D67: SE13 | G67: 1058 | H67: 2à6 | I67: LIMITE INFRAPOLE - AVIGNON | J67: R | K67: PAK | L67: 830000 | M67: V1 | N67: 688.794 | O67: 740.897 | P67: 52.103
A68: 701 | B68: 2 | C68: 2022-01-15 | D68: SE13 | E68: 100026 | F68: 1108 | H68: 2à6 | I68: AVIGNON - LIMITE INFRAPOLE | K68: PAK | L68: 830000 | M68: V2 | N68: 740.984 | O68: 688.794 | P68: 52.19
A69: 701 | B69: 2 | C69: 2022-01-15 | D69: SE13 | H69: 2à6 | I69: LIMITE INFRAPOLE - LIVRON | K69: RA | L69: 830000 | M69: V2 | N69: 688.794 | O69: 634.333 | P69: 54.461
A70: 701 | B70: 2 | C70: 2022-01-15 | D70: SE13 | H70: 2à6 | I70: LIVRON - PORTES | K70: RA | L70: 830000 | M70: V2 | N70: 634.333 | O70: 625.819 | P70: 8.514
A71: 701 | B71: 2 | C71: 2022-01-15 | D71: SE13 | H71: 2à6 | I71: PORTES - VALENCE | K71: RA | L71: 830000 | M71: V2BIS | N71: 625.819 | O71: 621.183 | P71: 4.636
A72: 701 | B72: 2 | C72: 2022-01-15 | D72: SE13 | G72: 1349 | H72: 2à6 | I72: VALENCE - VIENNE | K72: RA | L72: 830000 | M72: V2 | N72: 621.183 | O72: 543.025 | P72: 78.158
A73: 701 | B73: 2 | C73: 2022-01-16 | D73: SE14 | E73: 100027 | F73: 858 | H73: ACH | I73: VIENNE - VALENCE | K73: RA | L73: 830000 | M73: V1 | N73: 542.722 | O73: 621.183 | P73: 78.461
A74: 701 | B74: 2 | C74: 2022-01-16 | D74: SE14 | H74: 2à6 | I74: VALENCE - PORTES | K74: RA | L74: 830000 | M74: V1BIS | N74: 621.183 | O74: 625.819 | P74: 4.636
A75: 701 | B75: 2 | C75: 2022-01-16 | D75: SE14 | G75: 1015 | H75: ACH | I75: PORTES - LIVRON | J75: R | K75: RA | L75: 830000 | M75: V1 | N75: 625.819 | O75: 633.743 | P75: 7.924
A76: 701 | B76: 2 | C76: 2022-01-16 | D76: SE14 | E76: 100028 | F76: 1028 | H76: ACH | I76: LIVRON - PORTES | K76: RA | L76: 830000 | M76: V2 | N76: 633.928 | O76: 625.819 | P76: =ABS(N76-O76) -> 8.109
A77: 701 | B77: 2 | C77: 2022-01-16 | D77: SE14 | G77: 1044 | H77: 2à6 | I77: PORTES - VALENCE | J77: R | K77: RA | L77: 830000 | M77: V2 | N77: 625.819 | O77: 617.444 | P77: 8.375
A78: 701 | B78: 2 | C78: 2022-01-16 | D78: SE14 | E78: 100029 | F78: 1114 | H78: ACH | I78: VALENCE - AVIGNON | K78: RA/PAK | L78: 830000 | M78: V1 | N78: 617.468 | O78: 740.897 | P78: 123.429
A79: 701 | B79: 2 | C79: 2022-01-16 | D79: SE14 | G79: 1324 | H79: 2à6 | I79: AVIGNON - ARLES | J79: R | K79: PAK | L79: 830000 | M79: V1 | N79: 740.897 | O79: 775.947 | P79: 35.05
A80: 701 | B80: 2 | C80: 2022-01-16 | D80: SE14 | E80: 100030/31 | F80: 1335 | H80: 2à6 | I80: ARLES - AVIGNON | K80: PAK | L80: 830000 | M80: V2 | N80: 775.883 | O80: 741.085 | P80: 34.798
A81: 701 | B81: 2 | C81: 2022-01-16 | D81: SE14 | H81: ACH | I81: AVIGNON - AVIGNON | K81: PAK | L81: 830000 | N81: 741.085 | O81: 740.8 | P81: 0.285
A82: 701 | B82: 2 | C82: 2022-01-16 | D82: SE14 | H82: 2à6 | I82: AVIGNON - CAVAILLON - MIRAMAS | K82: PAK | L82: 925000 | M82: V1 | N82: 0.547 | O82: 67.088 | P82: 66.541
A83: 701 | B83: 2 | C83: 2022-01-16 | D83: SE14 | H83: ACH | I83: MIRAMAS - MIRAMAS | K83: PAK | L83: 925000 | M83: 1RACC | N83: 67.088 | O83: 67.7 | P83: 0.612
A84: 701 | B84: 2 | C84: 2022-01-16 | D84: SE14 | G84: 1509 | H84: ACH | I84: MIRAMAS - MIRAMAS FAISCEAU RECEPTION | K84: PAK | L84: 830000 | M84: 2TER | N84: 808.08 | O84: 808.707 | P84: 0.627
A85: 701 | B85: 3 | C85: 2022-01-17 | D85: SE15B | E85: 100033[1] | F85: 829 | H85: ACH | I85: MIRAMAS FAISCEAU DEPART - MIRAMAS | K85: PAK | L85: 830000 | N85: 808.7 | O85: 808.947 | P85: =ABS(N85-O85) -> 0.247
A86: 701 | B86: 3 | C86: 2022-01-17 | D86: SE15B | H86: 2à6 | I86: MIRAMAS - MARTIGUES | K86: PAK | L86: 935000 | M86: V1 | N86: 809.28 | O86: 840 | P86: =ABS(N86-O86) -> 30.72
A87: 701 | B87: 3 | C87: 2022-01-17 | D87: SE15B | H87: 7à9 | I87: MARTIGUES - L'ESTAQUE | K87: PAK | L87: 935000 | M87: V1 | N87: 840 | O87: 870.081 | P87: =ABS(N87-O87) -> 30.081
A88: 701 | B88: 3 | C88: 2022-01-17 | D88: SE15B | G88: 947 | H88: 2à6 | I88: L'ESTAQUE - Marseille Euroméditerranée - MARSEILLE ST CHARLES | J88: R | K88: PAK | L88: 939001 | M88: VMM1 | N88: 851.699 | O88: 861.536 | P88: 9.837
A89: 701 | B89: 3 | C89: 2022-01-17 | D89: SE15B | E89: 100400/01 | F89: 1107 | H89: ACH | I89: MARSEILLE ST CHARLES BV - MARSEILLE ST CHARLES | K89: PAK | L89: 830000 | N89: 862.05 | O89: 859.884 | P89: =ABS(N89-O89) -> 2.166
A90: 701 | B90: 3 | C90: 2022-01-17 | D90: SE15B | H90: 2à6 | I90: MARSEILLE ST CHARLES - ST ANTOINE | K90: PAK | L90: 905000 | M90: VA2 | N90: 441.843 | O90: 435.67 | P90: 6.173
A91: 701 | B91: 3 | C91: 2022-01-17 | D91: SE15B | H91: 2à6 | I91: ST ANTOINE - SEPTEME | K91: PAK | L91: 905000 | M91: VA1 | N91: 435.67 | O91: 430.379 | P91: 5.291
A92: 701 | B92: 3 | C92: 2022-01-17 | D92: SE15B | H92: 2à6 | I92: SEPTEME - BOUC CABRIES | K92: PAK | L92: 905000 | M92: VA2 | N92: 430.379 | O92: 426.621 | P92: 3.758
A93: 701 | B93: 3 | C93: 2022-01-17 | D93: SE15B | H93: 2à6 | I93: BOUC CABRIES - GARDANNE | K93: PAK | L93: 905000 | M93: VA1 | N93: 426.621 | O93: 418.8 | P93: 7.821
A94: 701 | B94: 3 | C94: 2022-01-17 | D94: SE15B | H94: 2à6 | I94: GARDANNE - AIX EN PROVENCE | K94: PAK | L94: 905000 | M94: VA1 | N94: 418.8 | O94: 408.517 | P94: 10.283
A95: 701 | B95: 3 | C95: 2022-01-17 | D95: SE15B | H95: 7à9 | I95: AIX EN PROVENCE - Racc | K95: PAK | L95: 905000 | M95: UNIQUE | N95: 408.517 | O95: 379.726 | P95: 28.791
A96: 701 | B96: 3 | C96: 2022-01-17 | D96: SE15B | H96: 7à9 | I96: RACCORDEMENT DE PERTUIS | K96: PAK | L96: 905306 | M96: UNIQUE | N96: 0.637 | O96: 0 | P96: 0.637
A97: 701 | B97: 3 | C97: 2022-01-17 | D97: SE15B | H97: 7à9 | I97: Racc - MANOSQUE | K97: PAK | L97: 905000 | M97: UNIQUE | N97: 371.178 | O97: 340.083 | P97: 31.095
A98: 701 | B98: 3 | C98: 2022-01-17 | D98: SE15B | H98: 7à9 | I98: MANOSQUE - VEYNES | K98: PAK | L98: 905000 | M98: UNIQUE | N98: 339.359 | O98: 244.131 | P98: 95.228
A99: 701 | B99: 3 | C99: 2022-01-17 | D99: SE15B | G99: 1534 | H99: 2à6 | I99: VEYNES DEVOLUY - GAP | K99: PAK | L99: 915000 | M99: UNIQUE | N99: 240.048 | O99: 266.958 | P99: 26.91
A100: 701 | B100: 3 | C100: 2022-01-18 | D100: SE16B | E100: 100402/03 | F100: 657 | H100: ACH | I100: GAP - AIX EN PROVENCE | K100: PAK | P100: 182
A101: 701 | B101: 3 | C101: 2022-01-18 | D101: SE16B | H101: 2à6 | I101: AIX EN PROVENCE - GARDANNE | K101: PAK | L101: 905000 | M101: VA1 | N101: 408.517 | O101: 419.631 | P101: =ABS(N101-O101) -> 11.114
A102: 701 | B102: 3 | C102: 2022-01-18 | D102: SE16B | H102: 2à6 | I102: GARDANNE - SEPTEME | K102: PAK | L102: 905000 | M102: VA1 | N102: 419.631 | O102: 430.228 | P102: 10.597
A103: 701 | B103: 3 | C103: 2022-01-18 | D103: SE16B | H103: 2à6 | I103: SEPTEME - MARSEILLE ST CHARLES | K103: PAK | L103: 905000 | M103: VA1 | N103: 430.228 | O103: 442.206 | P103: 11.978
A104: 701 | B104: 3 | C104: 2022-01-18 | D104: SE16B | H104: 2à6 | I104: MARSEILLE ST CHARLES - Raccordement des Chartreux | K104: PAK | L104: 830000 | M104: V1 | N104: 860.247 | O104: 860.256 | P104: 0.009
A105: 701 | B105: 3 | C105: 2022-01-18 | D105: SE16B | H105: 2à6 | I105: RACC DES CHARTREUX | K105: PAK | L105: 936300 | M105: V1 | N105: 860.256 | O105: 861.566 | P105: 1.31
A106: 701 | B106: 3 | C106: 2022-01-18 | D106: SE16B | G106: 1115 | H106: ACH | I106: Raccordement des Chartreux - MARSEILLE BLANCARDE | J106: R | K106: PAK | L106: 930000 | M106: MV1 | N106: 2.062 | O106: 3.952 | P106: 1.89
A107: 701 | B107: 3 | C107: 2022-01-18 | D107: SE16B | E107: 100036 | F107: 1125 | H107: ACH | I107: MARSEILLE BLANCARDE - Raccordement des Chartreux | K107: PAK | L107: 930000 | M107: MV2 | N107: 3.848 | O107: 1.937 | P107: 1.911
A108: 701 | B108: 3 | C108: 2022-01-18 | D108: SE16B | H108: 2à6 | I108: RACC DES CHARTREUX | K108: PAK | L108: 936300 | M108: V2 | N108: 861.441 | O108: 860.364 | P108: 1.077
A109: 701 | B109: 3 | C109: 2022-01-18 | D109: SE16B | H109: 2à6 | I109: Racc des Chartreux - L'ESTAQUE - ROGNAC - MIRAMAS | K109: PAK | L109: 830000 | M109: V2 | N109: 860.207 | O109: 808.579 | P109: 51.628
A110: 701 | B110: 3 | C110: 2022-01-18 | D110: SE16B | G110: 1225 | H110: ACH | I110: MIRAMAS - MIRAMAS FAISCEAU RECEPTION | K110: PAK | L110: 830000 | M110: V2B | N110: 808.579 | O110: 806.755 | P110: 1.824
A111: 701 | B111: 3 | C111: 2022-01-19 | D111: SE17-18B | E111: 100038 | F111: 831 | H111: ACH | I111: MIRAMAS FAISCEAU DEPART - MIRAMAS | K111: PAK | L111: 830000 | N111: 808.7 | O111: 808.947 | P111: =ABS(N111-O111) -> 0.247
A112: 701 | B112: 3 | C112: 2022-01-19 | D112: SE17-18B | H112: ACH | I112: MIRAMAS - BIF DE LAVALDUC | K112: PAK | L112: 935000 | M112: V1 | N112: 809.28 | O112: 824.843 | P112: 15.563
A113: 701 | B113: 3 | C113: 2022-01-19 | D113: SE17-18B | H113: 2à6 | I113: BIF DE LAVALDUC - FOS FIGUERAT | K113: PAK | L113: 935901 | M113: V1 | N113: 0.081 | O113: 4.568 | P113: 4.487
A114: 701 | B114: 3 | C114: 2022-01-19 | D114: SE17-18B | H114: 2à6 | I114: FOS FIGUERAT - PORT ST LOUIS | K114: PAK | L114: 935902 | M114: V1 | N114: 4.568 | O114: 11.524 | P114: 6.956
A115: 701 | B115: 3 | C115: 2022-01-19 | D115: SE17-18B | H115: 2à6 | I115: V1 DU PORT ST LOUIS | K115: PAK | L115: 935903 | M115: V1 | N115: 11.524 | O115: 12.775 | P115: 1.251
A116: 701 | B116: 3 | C116: 2022-01-19 | D116: SE17-18B | H116: 2à6 | I116: VOIE UNIQUE DU PORT ST LOUIS | K116: PAK | L116: 935903 | M116: UNIQUE | N116: 12.775 | O116: 19.641 | P116: 6.866
A117: 701 | B117: 3 | C117: 2022-01-19 | D117: SE17-18B | G117: 915 | H117: 2à6 | I117: VOIE UNIQUE DU PORT ST LOUIS - FOS-GRAVELEAU | J117: R | K117: PAK | L117: 935904 | M117: UNIQUE | N117: 19.641 | O117: 25.045 | P117: 5.404
A118: 701 | B118: 3 | C118: 2022-01-19 | D118: SE17-18B | E118: 100039 | F118: 930 | H118: ACH | I118: FOS-GRAVELEAU - VOIE UNIQUE DU PORT ST LOUIS | K118: PAK | L118: 935904 | M118: UNIQUE | N118: 25.045 | O118: 19.641 | P118: 5.404
A119: 701 | B119: 3 | C119: 2022-01-19 | D119: SE17-18B | H119: ACH | I119: VOIE UNIQUE DU PORT ST LOUIS | K119: PAK | L119: 935903 | M119: UNIQUE | N119: 22.039 | O119: 12.775 | P119: 9.264
A120: 701 | B120: 3 | C120: 2022-01-19 | D120: SE17-18B | H120: 2à6 | I120: V2 DU PORT ST LOUIS | K120: PAK | L120: 935903 | M120: V2 | N120: 12.775 | O120: 11.53 | P120: 1.245
A121: 701 | B121: 3 | C121: 2022-01-19 | D121: SE17-18B | H121: 2à6 | I121: PORT ST LOUIS - FIGUERAT | K121: PAK | L121: 935902 | M121: V2 | N121: 11.53 | O121: 4.568 | P121: 6.962
A122: 701 | B122: 3 | C122: 2022-01-19 | D122: SE17-18B | H122: 2à6 | I122: FIGUERAT - BIF DE LAVALDUC | K122: PAK | L122: 935901 | M122: V2 | N122: 4.568 | O122: 0 | P122: 4.568
A123: 701 | B123: 3 | C123: 2022-01-19 | D123: SE17-18B | G123: 1017 | H123: ACH | I123: BIF DE LAVALDUC - ISTRES - MIRAMAS | J123: R | K123: PAK | L123: 935000 | M123: V2 | N123: 824.843 | O123: 809.371 | P123: 15.472
A124: 701 | B124: 3 | C124: 2022-01-19 | D124: SE17-18B | E124: 100041[1] | F124: 1027 | G124: 1112 | H124: 2à6 | I124: MIRAMAS - ROGNAC - L'ESTAQUE - MARSEILLE ST CHARLES | J124: R | K124: PAK | L124: 830000 | M124: V1 | N124: 809.42 | O124: 861.168 | P124: 51.748
A125: 701 | B125: 3 | C125: 2022-01-19 | D125: SE17-18B | E125: 100043 | F125: 1126 | H125: 2à6 | I125: MARSEILLE ST CHARLES - MARSEILLE BLANCARDE | K125: PAK | L125: 930000 | M125: MV1 | N125: 0.983 | O125: 3.952 | P125: 2.969
A126: 701 | B126: 3 | C126: 2022-01-19 | D126: SE17-18B | G126: 1142 | H126: 2à6 | I126: MARSEILLE BLANCARDE - AUBAGNE (derrière Cv 3676 ?) | J126: R | K126: PAK | L126: 930000 | M126: V1 | N126: 3.952 | O126: 17.435 | P126: 13.483
A127: 701 | B127: 3 | C127: 2022-01-19 | D127: SE17-18B | E127: 100042 | F127: 1152 | G127: 1205 | H127: 2à6 | I127: AUBAGNE - MARSEILLE BLANCARDE | J127: R | K127: PAK | L127: 930000 | M127: V2 | N127: 17.17 | O127: 3.634 | P127: 13.536
A128: 701 | B128: 3 | C128: 2022-01-19 | D128: SE17-18B | E128: 100045[2] | F128: 1215 | H128: 2à6 | I128: MARSEILLE BLANCARDE - AUBAGNE | K128: PAK | L128: 930000 | M128: VMV3 | N128: 3.393 | O128: 16.221 | P128: 12.828
A129: 701 | B129: 3 | C129: 2022-01-19 | D129: SE17-18B | H129: 2à6 | I129: AUBAGNE VOIE A | K129: PAK | L129: 930000 | M129: A | N129: 16.221 | O129: 17.138 | P129: 0.917
A130: 701 | B130: 3 | C130: 2022-01-19 | D130: SE17-18B | G130: 1529 | H130: 2à6 | I130: AUBAGNE - CANNES MARCHANDISES | K130: PAK | L130: 930000 | M130: V1 | N130: 17.138 | O130: 188.892 | P130: 171.754
A131: 701 | B131: 3 | C131: 2022-01-20 | D131: SE17-SE19 | E131: 100053[2] | F131: 838 | H131: 2à6 | I131: CANNES MARCHANDISES - CANNES | K131: PAK | L131: 930000 | M131: V1 | N131: 188.892 | O131: 193.132 | P131: =ABS(N131-O131) -> 4.24
A132: 701 | B132: 3 | C132: 2022-01-20 | D132: SE17-SE19 | H132: 2à6 | I132: CANNES - ANTIBES | K132: PAK | L132: 930000 | M132: V1 | N132: 193.132 | O132: 203.87 | P132: 10.738
A133: 701 | B133: 3 | C133: 2022-01-20 | D133: SE17-SE19 | H133: 2à6 | I133: ANTIBES - CAGNES SUR MER | K133: PAK | L133: 930000 | M133: ANC | N133: 203.874 | O133: 212.95 | P133: 9.076
A134: 701 | B134: 3 | C134: 2022-01-20 | D134: SE17-SE19 | H134: 2à6 | I134: CAGNES SUR MER - NICE | K134: PAK | L134: 930000 | M134: V1 | N134: 212.95 | O134: 224.45 | P134: 11.5
A135: 701 | B135: 3 | C135: 2022-01-20 | D135: SE17-SE19 | H135: 2à6 | I135: NICE - MENTON | K135: PAK | L135: 930000 | M135: V1 | N135: 224.45 | O135: 248.586 | P135: 24.136
A136: 701 | B136: 3 | C136: 2022-01-20 | D136: SE17-SE19 | G136: 1010 | H136: 2à6 | I136: MENTON - VINTIMILLE | J136: R | K136: PAK | L136: 930000 | M136: V1 | N136: 248.586 | O136: 258.512 | P136: 9.926
A137: 701 | B137: 3 | C137: 2022-01-20 | D137: SE17-SE19 | E137: 100054[4] | F137: 1020 | H137: 2à6 | I137: VINTIMILLE - MENTON | K137: PAK | L137: 930000 | M137: V2 | N137: 258.512 | O137: 248.586 | P137: 9.926
A138: 701 | B138: 3 | C138: 2022-01-20 | D138: SE17-SE19 | H138: 2à6 | I138: MENTON - CAGNES SUR MER | K138: PAK | L138: 930000 | M138: V2 | N138: 248.586 | O138: 212.95 | P138: 35.636
A139: 701 | B139: 3 | C139: 2022-01-20 | D139: SE17-SE19 | H139: 2à6 | I139: CAGNES SUR MER - ANTIBES | K139: PAK | L139: 930000 | M139: V2 | N139: 212.95 | O139: 203.87 | P139: 9.08
A140: 701 | B140: 3 | C140: 2022-01-20 | D140: SE17-SE19 | H140: 2à6 | I140: ANTIBES - CANNES | K140: PAK | L140: 930000 | M140: V2 | N140: 203.87 | O140: 193.132 | P140: 10.738
A141: 701 | B141: 3 | C141: 2022-01-20 | D141: SE17-SE19 | H141: 2à6 | I141: CANNES - CANNES MARCHANDISES | J141: R | K141: PAK | L141: 930000 | M141: V2 | N141: 193.132 | O141: 190.799 | P141: 2.333
A142: 701 | B142: 3 | C142: 2022-01-20 | D142: SE17-SE19 | H142: ACH | I142: CANNES MARCHANDISES - CANNES LA BOCCA | K142: PAK | L142: 930000 | N142: 190.799 | O142: 190.61 | P142: 0.189
A143: 701 | B143: 3 | C143: 2022-01-20 | D143: SE17-SE19 | G143: 1150 | H143: 2à6 | I143: CANNES LA BOCCA - GRASSE | J143: R | K143: PAK | L143: 944000 | M143: UNIQUE | N143: 2.522 | O143: 18.876 | P143: 16.354
A144: 701 | B144: 3 | C144: 2022-01-20 | D144: SE17-SE19 | E144: 101849[1] | F144: 1320 | H144: 2à6 | I144: GRASSE - CANNES LA BOCCA | K144: PAK | L144: 944000 | M144: UNIQUE | N144: 18.876 | O144: 2.522 | P144: 16.354
A145: 701 | B145: 3 | C145: 2022-01-20 | D145: SE17-SE19 | H145: ACH | I145: CANNES - ANTIBES | K145: PAK | L145: 930000 | M145: V1 | N145: 190.61 | O145: 203.87 | P145: 13.26
A146: 701 | B146: 3 | C146: 2022-01-20 | D146: SE17-SE19 | G146: 1352 | H146: 2à6 | I146: ANTIBES - CAGNES SUR MER (derrière Cv70) | J146: R | K146: PAK | L146: 930000 | M146: V1 | N146: 203.874 | O146: 212.959 | P146: 9.085
A147: 701 | B147: 3 | C147: 2022-01-20 | D147: SE17-SE19 | E147: 100050[1] | F147: 1405 | H147: ACH | I147: CAGNES SUR MER - ANTIBES | K147: PAK | L147: 930000 | M147: ANC/V2 | N147: 212.835 | O147: 203.87 | P147: 8.965
A148: 701 | B148: 3 | C148: 2022-01-20 | D148: SE17-SE19 | G148: 1435 | H148: ACH | I148: ANTIBES - CANNES MARCHANDISES | K148: PAK | L148: 930000 | M148: V2 | N148: 203.87 | O148: 188.892 | P148: 14.978
A149: 701 | B149: 3 | C149: 2022-01-21 | D149: SE19-SE20 | E149: 100068 | F149: 740 | G149: 922 | H149: 2à6 | I149: CANNES MARCHANDISES - TOULON | J149: R | K149: PAK | L149: 930000 | M149: V2 | N149: 188.892 | O149: 68.27 | P149: =ABS(N149-O149) -> 120.622
A150: 701 | B150: 3 | C150: 2022-01-21 | D150: SE19-SE20 | E150: 100065[1] | F150: 1035 | H150: ACH | I150: TOULON - LA PAULINE HYERES | K150: PAK | L150: 930000 | M150: V1 | N150: 67.433 | O150: 77.381 | P150: 9.948
A151: 701 | B151: 3 | C151: 2022-01-21 | D151: SE19-SE20 | G151: 1057 | H151: 7à9 | I151: LA PAULINE HYERES - LES SALINS D'HYERES | J151: R | K151: PAK | L151: 942000 | M151: UNIQUE | N151: 0.362 | O151: 14.36 | P151: 13.998
A152: 701 | B152: 3 | C152: 2022-01-21 | D152: SE19-SE20 | E152: 100064[1] | F152: 1128 | H152: ACH | I152: LES SALINS D'HYERES - LA PAULINE HYERES | K152: PAK | L152: 942000 | M152: UNIQUE | N152: 14.36 | O152: 0.362 | P152: 13.998
A153: 701 | B153: 3 | C153: 2022-01-21 | D153: SE19-SE20 | H153: ACH | I153: LA PAULINE HYERES - TOULON | K153: PAK | L153: 930000 | M153: V2 | N153: 77.487 | O153: 67.312 | P153: 10.175
A154: 701 | B154: 3 | C154: 2022-01-21 | D154: SE19-SE20 | H154: 2à6 | I154: TOULON - AUBAGNE | K154: PAK | L154: 930000 | M154: V2 | N154: 67.312 | O154: 16.221 | P154: 51.091
A155: 701 | B155: 3 | C155: 2022-01-21 | D155: SE19-SE20 | H155: ACH | I155: AUBAGNE - MARSEILLE BLANCARDE | K155: PAK | L155: 930000 | M155: MV2 | N155: 16.221 | O155: 3.634 | P155: 12.587
A156: 701 | B156: 3 | C156: 2022-01-21 | D156: SE19-SE20 | G156: 1252 | H156: 2à6 | I156: MARSEILLE BLANCARDE - MARSEILLE ST CHARLES | K156: PAK | L156: 930000 | M156: MV2 | N156: 3.634 | O156: 0.913 | P156: 2.721
A157: 701 | B157: 3 | C157: 2022-01-22 | D157: SE20B | E157: 100066[1] | F157: 920 | H157: ACH | I157: MARSEILLE ST CHARLES - MARSEILLE ST CHARLES | K157: PAK | L157: 939001 | M157: VMM3 | N157: 861.666 | O157: 858.492 | P157: =ABS(N157-O157) -> 3.174
A158: 701 | B158: 3 | C158: 2022-01-22 | D158: SE20B | H158: 2à6 | I158: MARSEILLE ST CHARLES - Marseille Euroméditerranée - L'ESTAQUE | K158: PAK | L158: 939001 | M158: VMM2 | N158: 858.492 | O158: 851.699 | P158: 6.793
A159: 701 | B159: 3 | C159: 2022-01-22 | D159: SE20B | H159: 7à9 | I159: L'ESTAQUE - MARTIGUES | K159: PAK | L159: 935000 | M159: V2 | N159: 870.081 | O159: 840 | P159: 30.081
A160: 701 | B160: 3 | C160: 2022-01-22 | D160: SE20B | H160: 2à6 | I160: MARTIGUES - MIRAMAS | K160: PAK | L160: 935000 | M160: V2 | N160: 840 | O160: 809.28 | P160: 30.72
A161: 701 | B161: 3 | C161: 2022-01-22 | D161: SE20B | G161: 1128 | H161: 2à6 | I161: MIRAMAS - CAVAILLON - AVIGNON FONTCOUVERTE (derrière Cv68 ? ) | K161: PAK | L161: 925000 | M161: V2 | N161: 68.536 | O161: 0.75 | P161: 67.786
A162: 701 | B162: 3 | C162: 2022-01-23 | D162: SE21B | E162: 100070/71[2] | F162: 916 | H162: ACH | I162: AVIGNON FONTCOUVERTE DEPOT - ARLES | K162: PAK | L162: 830000 | N162: 740.743 | O162: 775.947 | P162: 35.204
A163: 701 | B163: 3 | C163: 2022-01-23 | D163: SE21B | G163: 1015 | H163: 2à6 | I163: ARLES - MIRAMAS | J163: R | K163: PAK | L163: 830000 | M163: V1 | N163: 775.947 | O163: 809.42 | P163: 33.473
A164: 701 | B164: 3 | C164: 2022-01-23 | D164: SE21B | E164: 100072/73 | F164: 1030 | H164: 2à6 | I164: MIRAMAS - ARLES | K164: PAK | L164: 830000 | M164: V2 | N164: 809.519 | O164: 775.883 | P164: 33.636
A165: 701 | B165: 3 | C165: 2022-01-23 | D165: SE21B | H165: ACH | I165: ARLES - TARASCON | K165: PAK | L165: 830000 | M165: V2 | N165: 775.883 | O165: 764.325 | P165: 48
A166: 701 | B166: 3 | C166: 2022-01-23 | D166: SE21B | H166: 2à6 | I166: Raccordement Sud de Tarascon | K166: PAK | L166: 810000 | M166: V1RS | N166: 0 | O166: 1.454 | P166: =ABS(N166-O166) -> 1.454
A167: 701 | B167: 3 | C167: 2022-01-23 | D167: SE21B | H167: 2à6 | I167: Raccordement Sud de Tarascon | K167: PAK | L167: 810000 | M167: V1S | N167: 0 | O167: 0.261 | P167: 0.261
A168: 701 | B168: 3 | C168: 2022-01-23 | D168: SE21B | H168: 2à6 | I168: TARASCON - LIMITE INFRAPOLE | K168: PAK | L168: 810000 | M168: V1 | N168: 0.261 | O168: 0.8 | P168: 0.539
A169: 701 | B169: 3 | C169: 2022-01-23 | D169: SE21B | G169: 1113 | H169: 2à6 | I169: LIMITE INFRAPOLE - BEAUCAIRE MARCHANDISES | J169: R | K169: LR | L169: 810000 | M169: V1 | N169: 0.8 | O169: 1.101 | P169: 0.301
A170: 701 | B170: 3 | C170: 2022-01-23 | D170: SE21B | E170: 100074 | F170: 1123 | H170: ACH | I170: BEAUCAIRE MARCHANDISES - LIMITE INFRAPOLE | K170: LR | L170: 810000 | M170: V2 | N170: 1.11 | O170: 0.8 | P170: 0.31
A171: 701 | B171: 3 | C171: 2022-01-23 | D171: SE21B | H171: ACH | I171: LIMITE INFRAPOLE - Racc Nord de Tarascon | K171: PAK | L171: 810000 | M171: V2 | N171: 0.8 | O171: 0 | P171: 0.8
A172: 701 | B172: 3 | C172: 2022-01-23 | D172: SE21B | H172: 2à6 | I172: Raccordement Nord de Tarascon | K172: PAK | L172: 830351 | M172: V2RN | N172: 762.872 | O172: 761.771 | P172: 1.101
A173: 701 | B173: 3 | C173: 2022-01-23 | D173: SE21B | G173: 1146 | H173: ACH | I173: Racc Nord de Tarascon - AVIGNON | J173: R | K173: PAK | L173: 830000 | M173: V2 | N173: 761.771 | O173: 741.345 | P173: 20.426
A174: 701 | B174: 3 | C174: 2022-01-23 | D174: SE21B | E174: 100075[2] | F174: 1224 | H174: ACH | I174: AVIGNON - Racc Nord de Tarascon | K174: PAK | L174: 830000 | M174: V1 | N174: 741.345 | O174: 761.35 | P174: 20.005
A175: 701 | B175: 3 | C175: 2022-01-23 | D175: SE21B | H175: 2à6 | I175: Raccordement Nord de Tarascon | K175: PAK | L175: 830351 | M175: V1RN | N175: 761.35 | O175: 763.092 | P175: 1.742
A176: 701 | B176: 3 | C176: 2022-01-23 | D176: SE21B | H176: ACH | I176: Racc Nord de Tarascon - LIMITE INFRAPOLE | K176: PAK | L176: 810000 | M176: V1 | N176: 0.202 | O176: 0.8 | P176: 0.598
A177: 701 | B177: 3 | C177: 2022-01-23 | D177: SE21B | H177: ACH | I177: LIMITE INFRAPOLE - BEAUCAIRE MARCHANDISES | K177: LR | L177: 810000 | M177: V1 | N177: 0.8 | O177: 1.101 | P177: 0.301
A178: 701 | B178: 3 | C178: 2022-01-23 | D178: SE21B | H178: 2à6 | I178: BEAUCAIRES MARCHANDISES - NIMES | K178: LR | L178: 810000 | M178: V1 | N178: 1.101 | O178: 21.902 | P178: 20.801
A179: 701 | B179: 3 | C179: 2022-01-23 | D179: SE21B | H179: 2à6 | I179: NIMES - ST-CESAIRE P1 | K179: LR | L179: 810000 | M179: V1 | N179: 21.902 | O179: 31.665 | P179: 9.763
A180: 701 | B180: 3 | C180: 2022-01-23 | D180: SE21B | G180: 1353 | H180: 7à9 | I180: ST-CESAIRE P1 - LE GRAU DU ROI | J180: R | K180: LR | L180: 819000 | M180: VU | N180: 4.672 | O180: 44.689 | P180: 40.017
A181: 701 | B181: 3 | C181: 2022-01-23 | D181: SE21B | E181: 100076[1] | F181: 1400 | H181: 7à9 | I181: LE GRAU DU ROI - ST-CESAIRE P1 | K181: LR | L181: 819000 | M181: VU | N181: 44.689 | O181: 4.672 | P181: 40.017
A182: 701 | B182: 3 | C182: 2022-01-23 | D182: SE21B | G182: 1457 | H182: 2à6 | I182: ST-CESAIRE P1 - NIMES (voie A) | J182: R | K182: LR | L182: 810000 | M182: V2 | N182: 31.82 | O182: 24.949 | P182: 6.871
A183: 701 | B183: 3 | C183: 2022-01-23 | D183: SE21B | E183: 100077[1] | F183: 1508 | G183: 1512 | H183: ACH | I183: NIMES - NIMES DEPOT | K183: LR
A184: 701 | B184: 4 | C184: 2022-01-24 | D184: SE22 | E184: 100086[1] | F184: 1128 | G184: 1131 | H184: ACH | I184: NIMES DEPOT - NIMES P3 | J184: R | K184: LR | L184: 810000 | N184: 25.9 | O184: 24.651 | P184: =ABS(N184-O184) -> 1.249
A185: 701 | B185: 4 | C185: 2022-01-24 | D185: SE22 | E185: 100101[1] | F185: 1141 | H185: ACH | I185: NIMES P3 - NIMES | K185: LR | L185: 810000 | N185: 24.651 | O185: 26.537 | P185: 1.886
A186: 701 | B186: 4 | C186: 2022-01-24 | D186: SE22 | H186: GEOV | I186: NIMES - ST-CESAIRE P1 | K186: LR | L186: 810000 | M186: V1 | N186: 26.537 | O186: 31.665 | P186: 5.128
A187: 701 | B187: 4 | C187: 2022-01-24 | D187: SE22 | H187: 2à6 | I187: ST-CESAIRE P1 - MONTPELLIER - SETE | K187: LR | L187: 810000 | M187: V1 | N187: 31.665 | O187: 106 | P187: 74.335
A188: 701 | B188: 4 | C188: 2022-01-24 | D188: SE22 | G188: 1325 | H188: 2à6 | I188: SETE - BEZIERS | J188: R | K188: LR | L188: 640000 | M188: V1 | N188: 474.42 | O188: 432.14 | P188: 42.28
A189: 701 | B189: 4 | C189: 2022-01-24 | D189: SE22 | E189: 100100[1] | F189: 1528 | H189: 2à6 | I189: BEZIERS - SETES | K189: LR | L189: 640000 | M189: V2 | N189: 432.275 | O189: 474.42 | P189: 42.145
A190: 701 | B190: 4 | C190: 2022-01-24 | D190: SE22 | H190: 2à6 | I190: SETES - ST-CESAIRE P1 | K190: LR | L190: 810000 | M190: V2 | N190: 106 | O190: 31.82 | P190: 74.18
A191: 701 | B191: 4 | C191: 2022-01-24 | D191: SE22 | H191: GEOV | I191: ST-CESAIRE P1 - NIMES | K191: LR | L191: 810000 | M191: V2 | N191: 31.82 | O191: 25.9678 | P191: 5.8522
A192: 701 | B192: 4 | C192: 2022-01-24 | D192: SE22 | G192: 1737 | H192: ACH | I192: NIMES - NIMES P3 | J192: R | K192: LR | L192: 810000 | N192: 25.9678 | O192: 24.646 | P192: 1.3218
A193: 701 | B193: 4 | C193: 2022-01-24 | D193: SE22 | E193: 100077[1] | F193: 1754 | G193: 1758 | H193: ACH | I193: NIMES P3 - NIMES DEPOT | K193: LR | L193: 810000 | N193: 24.646 | O193: 25.9 | P193: 1.254
A194: 701 | B194: 4 | C194: 2022-01-25 | D194: SE23 | E194: 100092/93[2] | F194: 959 | H194: ACH | I194: NIMES DEPOT - NIMES P3 | K194: LR | L194: 810000 | N194: 25.9 | O194: 25.182 | P194: =ABS(N194-O194) -> 0.718
A195: 701 | B195: 4 | C195: 2022-01-25 | D195: SE23 | H195: 2à6 | I195: NIMES - LIMITE INFRAPOLE | K195: LR | L195: 810000 | M195: V2 | N195: 25.182 | O195: 0.8 | P195: 24.382
A196: 701 | B196: 4 | C196: 2022-01-25 | D196: SE23 | H196: 2à6 | I196: LIMITE INFRAPOLE - TARASCON | K196: PAK | L196: 810000 | M196: V2 | N196: 0.8 | O196: 0.261 | P196: 0.539
A197: 701 | B197: 4 | C197: 2022-01-25 | D197: SE23 | H197: 2à6 | I197: Raccordement Sud de Tarascon | K197: PAK | L197: 810000 | M197: V2S | N197: 0.261 | O197: 0 | P197: 0.261
A198: 701 | B198: 4 | C198: 2022-01-25 | D198: SE23 | H198: 2à6 | I198: Raccordement Sud de Tarascon | K198: PAK | L198: 810000 | M198: V2RS | N198: 1.454 | O198: 0 | P198: 1.454
A199: 701 | B199: 4 | C199: 2022-01-25 | D199: SE23 | H199: ACH | I199: Raccordement Sud de Tarascon - ARLES | K199: PAK | L199: 830000 | M199: V1 | N199: 764.325 | O199: 775.946 | P199: 11.621
A200: 701 | B200: 4 | C200: 2022-01-25 | D200: SE23 | G200: 1122 | H200: ACH | I200: ARLES - ROGNAC | J200: R | K200: PAK | L200: 830000 | M200: V1 | N200: 775.883 | O200: 834.914 | P200: 59.031
... 4300 more rows

Sheet Tournée
K1: MESURE | N1: ACH | Q1: =SUMIF(H5:H1048576,"ach",P5:P1048576) -> 0 | S1: =IF(H5="","",SUM(P:P))-Q1 -> 0
A2: ESV | B2: Semaine | C2: Date | D2: Tournée
C3: 2022-01-10 | K3: =S1 -> 0 | N3: =Q1 -> 0
A5: ESV | B5: 2021-06-11 | C5: Date | D5: Tournée | E5: Sillon | F5: H. départ | G5: H. arrivée | H5: UIC | I5: Parcours / Acheminement | J5: R | K5: Régions | L5: N° ligne | M5: Voie | N5: départ | O5: Arrivée | P5: Distance

Sheet A34
A1: Date | B1: =X1 -> PROG | C1: Tournée | D1: MESURE PREVU | E1: MESURE REALISE | F1: ACH SUPP | H1: PERTE EIC | J1: PERTE PROG | L1: PERTE LOC | T1: MESURE | U1: ach | V1: mesure | W1: EIC | X1: PROG | Y1: LOC | AA1: PERTE TOTAL | AB1: MESURE TOTAL | AC1: ACH | AD1: KMS PARCOURUS
A2: NOTES LOC NG | T2: =ABS(D5-E5) -> 0 | U2: =SUMIF(A5:A31,"ACH SUPP",T2:T31) -> 0 | V2: =SUMIF(A5:A31,"MESURE",T2:T42) -> 0 | W2: =SUMIF(A5:A31,"PROG",T2:T42) -> 0 | X2: =SUMIF(A5:A31,"EIC",T2:T42) -> 0 | Y2: =SUMIF(A5:A31,"LOC",T2:T42) -> 0 | AA2: =W2+X2+Y2 -> 0 | AB2: =V2 -> 0 | AC2: =Tournée!AB3 -> 0 | AD2: =AB2+AC2 -> 0
D3: =Tournée!K3 -> 0 | E3: =MESURE!H2 -> 0 | F3: =MESURE!G2 -> 0 | H3: =MESURE!J2 -> 0 | J3: =MESURE!I2 -> 0 | L3: =MESURE!K2 -> 0 | T3: =ABS(D6-E6) -> 0
A4: Catégorie | B4: Ligne | C4: Voie | D4: PK départ | E4: PK Arrivée | F4: Commentaires | T4: =ABS(D7-E7) -> 0
T5: 0
T6: 0
T7: 0
T8: 0
T9: 0
T10: 0
T11: 0
T12: 0
T13: 0
T14: 0
T15: 0
T16: 0
T17: 0
T18: 0
T19: 0
T20: 0
T21: 0
T22: 0
T23: 0
T24: 0
T25: 0
T26: 0
T27: 0
T28: 0
T29: 0
T30: 0
T31: 0
T32: 0
T33: 0
T34: 0
T35: 0
T36: 0
T37: 0
T38: 0
T39: 0
T40: 0
T41: 0
T42: 0

Sheet MESURE (hidden)
A1: ESV | C1: categorie | D1: =DATE(2022,1,1) -> 2022-01-01 | F1: MESURE | G1: ach | H1: mesure | I1: EIC | J1: PROG | K1: LOC | M1: PERTE TOTAL | N1: MESURE TOTAL | O1: ACH | P1: KMS PARCOURUS
A2: 701 | C2: MESURE | F2: =ABS('A34'!D5-'A34'!E5) -> 0 | G2: =SUMIF('A34'!A5:A31,"ACH SUPP",F2:F31) -> 0 | H2: =SUMIF('A34'!A5:A31,"MESURE",F2:F42) -> 0 | I2: =SUMIF('A34'!A5:A31,"PROG",F2:F42) -> 0 | J2: =SUMIF('A34'!A5:A31,"EIC",F2:F42) -> 0 | K2: =SUMIF('A34'!A5:A31,"LOC",F2:F42) -> 0 | M2: =I2+J2+K2 -> 0 | N2: =H2 -> 0 | O2: =Tournée!N3 -> 0 | P2: =N2+O2 -> 0
A3: 702 | C3: PROG | F3: =+ABS('A34'!D6-'A34'!E6) -> 0
A4: 703 | C4: ACH SUPP | F4: =+ABS('A34'!D7-'A34'!E7) -> 0
C5: EIC | F5: =+ABS('A34'!D8-'A34'!E8) -> 0
C6: LOC | F6: =+ABS('A34'!D9-'A34'!E9) -> 0
C7: LTV 10 | F7: =+ABS('A34'!D10-'A34'!E10) -> 0
C8: LTV 40 | F8: =+ABS('A34'!D11-'A34'!E11) -> 0
C9: LTV 60 | F9: =+ABS('A34'!D12-'A34'!E12) -> 0
F10: =+ABS('A34'!D13-'A34'!E13) -> 0
F11: =+ABS('A34'!D14-'A34'!E14) -> 0
F12: =+ABS('A34'!D15-'A34'!E15) -> 0
F13: =+ABS('A34'!D16-'A34'!E16) -> 0
F14: =+ABS('A34'!D17-'A34'!E17) -> 0
F15: =+ABS('A34'!D18-'A34'!E18) -> 0
F16: =+ABS('A34'!D19-'A34'!E19) -> 0
F17: =+ABS('A34'!D20-'A34'!E20) -> 0
F18: =+ABS('A34'!D21-'A34'!E21) -> 0
F19: =+ABS('A34'!D22-'A34'!E22) -> 0
F20: =+ABS('A34'!D23-'A34'!E23) -> 0
F21: =+ABS('A34'!D24-'A34'!E24) -> 0
F22: =+ABS('A34'!D25-'A34'!E25) -> 0
F23: =+ABS('A34'!D26-'A34'!E26) -> 0
F24: =+ABS('A34'!D27-'A34'!E27) -> 0
F25: =+ABS('A34'!D28-'A34'!E28) -> 0
F26: =+ABS('A34'!D29-'A34'!E29) -> 0
F27: =+ABS('A34'!D30-'A34'!E30) -> 0
F28: =+ABS('A34'!D31-'A34'!E31) -> 0
F29: =+ABS('A34'!D32-'A34'!E32) -> 0
F30: =+ABS('A34'!D33-'A34'!E33) -> 0
F31: =+ABS('A34'!D34-'A34'!E34) -> 0
F32: =+ABS('A34'!D35-'A34'!E35) -> 0
F33: =+ABS('A34'!D36-'A34'!E36) -> 0
F34: =+ABS('A34'!D37-'A34'!E37) -> 0
F35: =+ABS('A34'!D38-'A34'!E38) -> 0
F36: =+ABS('A34'!D39-'A34'!E39) -> 0
F37: =+ABS('A34'!D40-'A34'!E40) -> 0
F38: =+ABS('A34'!D41-'A34'!E41) -> 0
F39: =+ABS('A34'!D42-'A34'!E42) -> 0
F40: =+ABS('A34'!D43-'A34'!E43) -> 0
F41: =+ABS('A34'!D44-'A34'!E44) -> 0
F42: =+ABS('A34'!D45-'A34'!E45) -> 0
